fUSD/lending_fUSD_20250209
["ID","MTS","AMOUNT","RATE_DAILY","PERIOD"]
[352481374,1739134263696,-500.0,0.00010958,2]
[352481375,1739134263707,-414.83,0.00010958,2]
[352481376,1739134263719,-500.0,0.00010958,2]
[352481377,1739134263728,-282.84,0.00010959,2]
[352481378,1739134263738,-150.0,0.00010959,2]
[352481379,1739134263748,-500.0,0.00011093,2]
[352481380,1739134263758,-917.93,0.00011094,2]
[352481381,1739134263768,-692.23,0.00011094,2]
[352481382,1739134263778,-500.0,0.00011094,2]
[352481383,1739134263788,-345.75,0.00011094,2]
[352481384,1739134263798,-726.47,0.00011094,2]
[352481385,1739134263808,-653.23,0.00011094,2]
[352481386,1739134263817,-500.0,0.00011094,2]
[352481387,1739134263827,-500.0,0.00011094,2]
[352481388,1739134263836,-500.0,0.00011094,2]
[352481389,1739134263846,-244.39543148,0.00011094,2]
[352481390,1739134263856,-500.0,0.00011094,2]
[352481391,1739134263866,-500.0,0.00011094,2]
[352481392,1739134263876,-1352.48,0.00011094,2]
[352481393,1739134263886,-529.76,0.00011094,2]
[352481394,1739134263896,-500.0,0.00011094,2]
[352481395,1739134263906,-663.71,0.00011094,2]
[352481396,1739134263918,-673.8,0.00011094,2]
[352481397,1739134263927,-699.27,0.00011094,2]
[352481398,1739134263937,-974.55,0.00011094,2]
[352481399,1739134263946,-500.0,0.00011094,2]
[352481400,1739134263957,-1051.01,0.00011094,2]
[352481401,1739134263973,-500.0,0.00011094,2]
[352481402,1739134263983,-500.0,0.00011094,2]
[352481403,1739134263993,-726.4,0.00011094,2]
[352481404,1739134264003,-500.0,0.00011094,2]
[352481405,1739134264012,-500.0,0.00011094,2]
[352481406,1739134264022,-671.52,0.00011094,2]
[352481407,1739134264031,-500.0,0.00011094,2]
[352481408,1739134264042,-500.0,0.00011094,2]
[352481409,1739134264051,-1306.57,0.00011094,2]
[352481410,1739134264062,-500.0,0.00011094,2]
[352481411,1739134264071,-591.07,0.00011094,2]
[352481412,1739134264081,-500.0,0.00011094,2]
[352481413,1739134264091,-640.63,0.00011094,2]
[352481414,1739134264101,-500.0,0.00011094,2]
[352481415,1739134264111,-573.12,0.00011094,2]
[352481416,1739134264121,-500.0,0.00011094,2]
[352481417,1739134264130,-500.0,0.00011094,2]
[352481418,1739134264140,-500.0,0.00011094,2]
[352481419,1739134264150,-500.0,0.00011094,2]
[352481420,1739134264160,-500.0,0.00011094,2]
[352481421,1739134264170,-500.0,0.00011094,2]
[352481422,1739134264180,-500.0,0.00011094,2]
[352481423,1739134264190,-500.0,0.00011094,2]
[352481424,1739134264201,-500.0,0.00011094,2]
[352481425,1739134264211,-691.26,0.00011094,2]
[352481426,1739134264222,-500.0,0.00011094,2]
[352481427,1739134264232,-500.0,0.00011094,2]
[352481428,1739134264242,-2376.59,0.00011094,2]
[352481429,1739134264251,-783.79,0.00011094,2]
[352481430,1739134264261,-500.0,0.00011094,2]
[352481431,1739134264270,-606.97,0.00011094,2]
[352481432,1739134264280,-500.0,0.00011094,2]
[352481433,1739134264290,-500.0,0.00011094,2]
[352481434,1739134264299,-248.58,0.00011095,2]
[352481435,1739134264310,-500.0,0.00011095,2]
[352481436,1739134264319,-500.0,0.00011095,2]
[352481437,1739134264329,-24642.18463388,0.00011099,2]
[352481438,1739134264338,-24642.18463379,0.00011099,2]
[352481439,1739134264348,-393.48,0.0001118,2]
[352481440,1739134264357,-500.0,0.0001123,2]
[352481441,1739134264367,-917.93,0.00011231,2]
[352481442,1739134264377,-692.23,0.00011231,2]
[352481443,1739134264387,-500.0,0.00011231,2]
[352481444,1739134264397,-726.47,0.00011231,2]
[352481445,1739134264407,-653.23,0.00011231,2]
[352481446,1739134264416,-500.0,0.00011231,2]
[352481447,1739134264426,-500.0,0.00011231,2]
[352481448,1739134264436,-500.0,0.00011231,2]
[352481449,1739134264446,-500.0,0.00011231,2]
[352481450,1739134264456,-500.0,0.00011231,2]
[352481451,1739134264466,-1352.48,0.00011231,2]
[352481452,1739134264477,-529.76,0.00011231,2]
[352481453,1739134264487,-500.0,0.00011231,2]
[352481454,1739134264497,-663.71,0.00011231,2]
[352481455,1739134264508,-673.8,0.00011231,2]
[352481456,1739134264518,-699.27,0.00011231,2]
[352481457,1739134264528,-974.55,0.00011231,2]
[352481458,1739134264538,-500.0,0.00011231,2]
[352481459,1739134264548,-1051.01,0.00011231,2]
[352481460,1739134264558,-500.0,0.00011231,2]
[352481461,1739134264568,-496.63262891,0.00011231,2]
[352481462,1739134264578,-726.4,0.00011231,2]
[352481463,1739134264588,-500.0,0.00011231,2]
[352481464,1739134264598,-475.46,0.00011231,2]
[352481465,1739134264607,-671.52,0.00011231,2]
[352481466,1739134264616,-500.0,0.00011231,2]
[352481467,1739134264626,-500.0,0.00011231,2]
[352481468,1739134264636,-1306.57,0.00011231,2]
[352481469,1739134264646,-500.0,0.00011231,2]
[352481470,1739134264656,-591.07,0.00011231,2]
[352481471,1739134264665,-500.0,0.00011231,2]
[352481472,1739134264675,-640.63,0.00011231,2]
[352481473,1739134264684,-500.0,0.00011231,2]
[352481474,1739134264694,-573.12,0.00011231,2]
[352481475,1739134264704,-500.0,0.00011231,2]
[352481476,1739134264713,-500.0,0.00011231,2]
[352481477,1739134264724,-500.0,0.00011231,2]
[352481478,1739134264733,-500.0,0.00011231,2]
[352481479,1739134264743,-500.0,0.00011231,2]
[352481480,1739134264752,-500.0,0.00011231,2]
[352481481,1739134264762,-500.0,0.00011231,2]
[352481482,1739134264773,-500.0,0.00011231,2]
[352481483,1739134264784,-500.0,0.00011231,2]
[352481484,1739134264928,-691.26,0.00011231,2]
[352481485,1739134264939,-500.0,0.00011231,2]
[352481486,1739134264950,-500.0,0.00011231,2]
[352481487,1739134264961,-2376.59,0.00011231,2]
[352481488,1739134264972,-783.79,0.00011231,2]
[352481489,1739134264981,-500.0,0.00011231,2]
[352481490,1739134264991,-606.97,0.00011231,2]
[352481491,1739134265000,-500.0,0.00011231,2]
[352481492,1739134265011,-500.0,0.00011231,2]
[352481493,1739134265020,-500.0,0.00011232,2]
[352481494,1739134265029,-592.86224409,0.00011232,2]
[352481495,1739134265039,-152.60632031,0.00011299,2]
[352481496,1739134265048,-1925.92,0.000113,2]
[352481497,1739134265058,-509.32999585,0.00011335,2]
[352481498,1739134265067,-500.0,0.00011367,2]
[352481499,1739134265076,-917.93,0.00011368,2]
[352481500,1739134265085,-692.23,0.00011368,2]
[352481501,1739134265095,-500.0,0.00011368,2]
[352481502,1739134265104,-726.47,0.00011368,2]
[352481503,1739134265117,-653.23,0.00011368,2]
[352481504,1739134265127,-500.0,0.00011368,2]
[352481505,1739134265137,-500.0,0.00011368,2]
[352481506,1739134265146,-500.0,0.00011368,2]
[352481507,1739134265157,-500.0,0.00011368,2]
[352481508,1739134265167,-500.0,0.00011368,2]
[352481509,1739134265176,-1352.48,0.00011368,2]
[352481510,1739134265185,-529.76,0.00011368,2]
[352481511,1739134265194,-500.0,0.00011368,2]
[352481512,1739134265204,-663.71,0.00011368,2]
[352481513,1739134265213,-673.8,0.00011368,2]
[352481514,1739134265222,-699.27,0.00011368,2]
[352481515,1739134265232,-974.55,0.00011368,2]
[352481516,1739134265241,-500.0,0.00011368,2]
[352481517,1739134265250,-1051.01,0.00011368,2]
[352481518,1739134265259,-500.0,0.00011368,2]
[352481519,1739134265269,-726.4,0.00011368,2]
[352481520,1739134265278,-184.26,0.00011368,2]
[352481521,1739134265287,-671.52,0.00011368,2]
[352481522,1739134265296,-500.0,0.00011368,2]
[352481523,1739134265305,-500.0,0.00011368,2]
[352481524,1739134265314,-1306.57,0.00011368,2]
[352481525,1739134265324,-500.0,0.00011368,2]
[352481526,1739134265333,-591.07,0.00011368,2]
[352481527,1739134265342,-500.0,0.00011368,2]
[352481528,1739134265352,-640.63,0.00011368,2]
[352481529,1739134265363,-500.0,0.00011368,2]
[352481530,1739134265373,-573.12,0.00011368,2]
[352481531,1739134265382,-500.0,0.00011368,2]
[352481532,1739134265392,-500.0,0.00011368,2]
[352481533,1739134265401,-500.0,0.00011368,2]
[352481534,1739134265411,-500.0,0.00011368,2]
[352481535,1739134265420,-500.0,0.00011368,2]
[352481536,1739134265429,-500.0,0.00011368,2]
[352481537,1739134265439,-500.0,0.00011368,2]
[352481538,1739134265449,-500.0,0.00011368,2]
[352481539,1739134265458,-500.0,0.00011368,2]
[352481540,1739134265467,-691.26,0.00011368,2]
[352481541,1739134265477,-343.56,0.00011368,2]
[352481542,1739134265486,-500.0,0.00011368,2]
[352481543,1739134265496,-2376.59,0.00011368,2]
[352481544,1739134265505,-783.79,0.00011368,2]
[352481545,1739134265515,-500.0,0.00011368,2]
[352481546,1739134265524,-606.97,0.00011368,2]
[352481547,1739134265535,-500.0,0.00011368,2]
[352481548,1739134265543,-500.0,0.00011368,2]
[352481549,1739134265554,-500.0,0.00011369,2]
[352481550,1739134265562,-500.0,0.00011504,2]
[352481551,1739134265572,-917.93,0.00011505,2]
[352481552,1739134265581,-692.23,0.00011505,2]
[352481553,1739134265591,-500.0,0.00011505,2]
[352481554,1739134265600,-726.47,0.00011505,2]
[352481555,1739134265610,-653.23,0.00011505,2]
[352481556,1739134265621,-500.0,0.00011505,2]
[352481557,1739134265630,-500.0,0.00011505,2]
[352481558,1739134265640,-500.0,0.00011505,2]
[352481559,1739134265650,-500.0,0.00011505,2]
[352481560,1739134265659,-500.0,0.00011505,2]
[352481561,1739134265669,-1352.48,0.00011505,2]
[352481562,1739134265678,-529.76,0.00011505,2]
[352481563,1739134265688,-500.0,0.00011505,2]
[352481564,1739134265698,-663.71,0.00011505,2]
[352481565,1739134265707,-673.8,0.00011505,2]
[352481566,1739134265716,-699.27,0.00011505,2]
[352481567,1739134265726,-974.55,0.00011505,2]
[352481568,1739134265736,-500.0,0.00011505,2]
[352481569,1739134265745,-1051.01,0.00011505,2]
[352481570,1739134265754,-500.0,0.00011505,2]
[352481571,1739134265764,-726.4,0.00011505,2]
[352481572,1739134265773,-671.52,0.00011505,2]
[352481573,1739134265782,-500.0,0.00011505,2]
[352481574,1739134265791,-500.0,0.00011505,2]
[352481575,1739134265801,-1306.57,0.00011505,2]
[352481576,1739134265811,-233.29,0.00011505,2]
[352481577,1739134265820,-591.07,0.00011505,2]
[352481578,1739134265831,-500.0,0.00011505,2]
[352481579,1739134265840,-640.63,0.00011505,2]
[352481580,1739134265849,-500.0,0.00011505,2]
[352481581,1739134265859,-573.12,0.00011505,2]
[352481582,1739134265867,-500.0,0.00011505,2]
[352481583,1739134265876,-500.0,0.00011505,2]
[352481584,1739134265886,-206.9,0.00011505,2]
[352481585,1739134265895,-500.0,0.00011505,2]
[352481586,1739134265905,-500.0,0.00011505,2]
[352481587,1739134265914,-500.0,0.00011505,2]
[352481588,1739134265923,-500.0,0.00011505,2]
[352481589,1739134265932,-500.0,0.00011505,2]
[352481590,1739134265941,-234.33,0.00011505,2]
[352481591,1739134265951,-691.26,0.00011505,2]
[352481592,1739134265961,-500.0,0.00011505,2]
[352481593,1739134265970,-2376.59,0.00011505,2]
[352481594,1739134265979,-783.79,0.00011505,2]
[352481595,1739134265988,-500.0,0.00011505,2]
[352481596,1739134265998,-606.97,0.00011505,2]
[352481597,1739134266007,-250.62588961,0.00011505,2]
[352481598,1739134266016,-500.0,0.00011505,2]
[352481599,1739134266024,-500.0,0.00011506,2]
[352481600,1739134266033,-1000.0,0.00011586,2]
[352481601,1739134266043,-500.0,0.00011641,2]
[352481602,1739134266054,-917.93,0.00011642,2]
[352481603,1739134266063,-692.23,0.00011642,2]
[352481604,1739134266071,-500.0,0.00011642,2]
[352481605,1739134266080,-726.47,0.00011642,2]
[352481606,1739134266089,-653.23,0.00011642,2]
[352481607,1739134266099,-500.0,0.00011642,2]
[352481608,1739134266108,-500.0,0.00011642,2]
[352481609,1739134266117,-500.0,0.00011642,2]
[352481610,1739134266126,-500.0,0.00011642,2]
[352481611,1739134266136,-500.0,0.00011642,2]
[352481612,1739134266145,-1352.48,0.00011642,2]
[352481613,1739134266155,-529.76,0.00011642,2]
[352481614,1739134266164,-500.0,0.00011642,2]
[352481615,1739134266173,-663.71,0.00011642,2]
[352481616,1739134266183,-673.8,0.00011642,2]
[352481617,1739134266192,-699.27,0.00011642,2]
[352481618,1739134266203,-974.55,0.00011642,2]
[352481619,1739134266212,-500.0,0.00011642,2]
[352481620,1739134266221,-1051.01,0.00011642,2]
[352481621,1739134266232,-500.0,0.00011642,2]
[352481622,1739134266241,-726.4,0.00011642,2]
[352481623,1739134266250,-671.52,0.00011642,2]
[352481624,1739134266259,-500.0,0.00011642,2]
[352481625,1739134266269,-500.0,0.00011642,2]
[352481626,1739134266278,-1306.57,0.00011642,2]
[352481627,1739134266288,-591.07,0.00011642,2]
[352481628,1739134266297,-500.0,0.00011642,2]
[352481629,1739134266306,-640.63,0.00011642,2]
[352481630,1739134266315,-500.0,0.00011642,2]
[352481631,1739134266325,-573.12,0.00011642,2]
[352481632,1739134266334,-500.0,0.00011642,2]
[352481633,1739134266343,-500.0,0.00011642,2]
[352481634,1739134266353,-500.0,0.00011642,2]
[352481635,1739134266362,-500.0,0.00011642,2]
[352481636,1739134266373,-477.32,0.00011642,2]
[352481637,1739134266383,-319.2,0.00011642,2]
[352481638,1739134266392,-500.0,0.00011642,2]
[352481639,1739134266402,-691.26,0.00011642,2]
[352481640,1739134266411,-500.0,0.00011642,2]
[352481641,1739134266420,-2376.59,0.00011642,2]
[352481642,1739134266429,-783.79,0.00011642,2]
[352481643,1739134266438,-500.0,0.00011642,2]
[352481644,1739134266448,-500.0,0.00011642,2]
[352481645,1739134266457,-606.97,0.00011642,2]
[352481646,1739134266465,-500.0,0.00011642,2]
[352481647,1739134266477,-500.0,0.00011643,2]
[352481648,1739134266486,-1000.0,0.00011698,2]
[352481649,1739134266496,-1000.0,0.00011698,2]
[352481650,1739134266506,-1000.0,0.00011698,2]
[352481651,1739134266516,-1000.0,0.00011698,2]
[352481652,1739134266525,-1000.0,0.00011698,2]
[352481653,1739134266534,-1000.0,0.00011698,2]
[352481654,1739134266543,-1000.0,0.00011698,2]
[352481655,1739134266553,-1000.0,0.00011698,2]
[352481656,1739134266562,-1000.0,0.00011698,2]
[352481657,1739134266571,-1000.0,0.00011698,2]
[352481658,1739134266582,-500.0,0.00011778,2]
[352481659,1739134266591,-917.93,0.00011779,2]
[352481660,1739134266600,-692.23,0.00011779,2]
[352481661,1739134266610,-500.0,0.00011779,2]
[352481662,1739134266619,-726.47,0.00011779,2]
[352481663,1739134266628,-653.23,0.00011779,2]
[352481664,1739134266639,-500.0,0.00011779,2]
[352481665,1739134266648,-500.0,0.00011779,2]
[352481666,1739134266658,-500.0,0.00011779,2]
[352481667,1739134266667,-500.0,0.00011779,2]
[352481668,1739134266677,-624.87,0.00011779,2]
[352481669,1739134266687,-1352.48,0.00011779,2]
[352481670,1739134266697,-529.76,0.00011779,2]
[352481671,1739134266706,-500.0,0.00011779,2]
[352481672,1739134266716,-663.71,0.00011779,2]
[352481673,1739134266729,-673.8,0.00011779,2]
[352481674,1739134266739,-699.27,0.00011779,2]
[352481675,1739134266749,-974.55,0.00011779,2]
[352481676,1739134266759,-500.0,0.00011779,2]
[352481677,1739134266769,-1051.01,0.00011779,2]
[352481678,1739134266780,-500.0,0.00011779,2]
[352481679,1739134266790,-726.4,0.00011779,2]
[352481680,1739134266800,-671.52,0.00011779,2]
[352481681,1739134266809,-608.47,0.00011779,2]
[352481682,1739134266819,-500.0,0.00011779,2]
[352481683,1739134266829,-1306.57,0.00011779,2]
[352481684,1739134266839,-591.07,0.00011779,2]
[352481685,1739134266849,-500.0,0.00011779,2]
[352481686,1739134266858,-640.63,0.00011779,2]
[352481687,1739134266868,-500.0,0.00011779,2]
[352481688,1739134266878,-573.12,0.00011779,2]
[352481689,1739134266888,-500.0,0.00011779,2]
[352481690,1739134266897,-500.0,0.00011779,2]
[352481691,1739134266907,-500.0,0.00011779,2]
[352481692,1739134266916,-503.6,0.00011779,2]
[352481693,1739134266925,-500.0,0.00011779,2]
[352481694,1739134266934,-691.26,0.00011779,2]
[352481695,1739134266943,-500.0,0.00011779,2]
[352481696,1739134266952,-2376.59,0.00011779,2]
[352481697,1739134266966,-783.79,0.00011779,2]
[352481698,1739134266978,-500.0,0.00011779,2]
[352481699,1739134266988,-606.97,0.00011779,2]
[352481700,1739134266998,-500.0,0.00011779,2]
[352481701,1739134267007,-500.0,0.0001178,2]
[352481702,1739134267017,-1500.0,0.000119,4]
[352481703,1739134267026,-500.0,0.00011915,2]
[352481704,1739134267035,-917.93,0.00011916,2]
[352481705,1739134267045,-692.23,0.00011916,2]
[352481706,1739134267055,-649.1,0.00011916,2]
[352481707,1739134267065,-726.47,0.00011916,2]
[352481708,1739134267074,-653.23,0.00011916,2]
[352481709,1739134267084,-500.0,0.00011916,2]
[352481710,1739134267094,-500.0,0.00011916,2]
[352481711,1739134267103,-500.0,0.00011916,2]
[352481712,1739134267113,-500.0,0.00011916,2]
[352481713,1739134267123,-1352.48,0.00011916,2]
[352481714,1739134267133,-529.76,0.00011916,2]
[352481715,1739134267142,-500.0,0.00011916,2]
[352481716,1739134267151,-663.71,0.00011916,2]
[352481717,1739134267161,-673.8,0.00011916,2]
[352481718,1739134267170,-699.27,0.00011916,2]
[352481719,1739134267180,-974.55,0.00011916,2]
[352481720,1739134267190,-500.0,0.00011916,2]
[352481721,1739134267199,-1051.01,0.00011916,2]
[352481722,1739134267209,-500.0,0.00011916,2]
[352481723,1739134267219,-726.4,0.00011916,2]
[352481724,1739134267232,-671.52,0.00011916,2]
[352481725,1739134267241,-500.0,0.00011916,2]
[352481726,1739134267251,-1306.57,0.00011916,2]
[352481727,1739134267260,-591.07,0.00011916,2]
[352481728,1739134267270,-500.0,0.00011916,2]
[352481729,1739134267278,-640.63,0.00011916,2]
[352481730,1739134267288,-500.0,0.00011916,2]
[352481731,1739134267297,-573.12,0.00011916,2]
[352481732,1739134267306,-500.0,0.00011916,2]
[352481733,1739134267315,-500.0,0.00011916,2]
[352481734,1739134267325,-500.0,0.00011916,2]
[352481735,1739134267334,-500.0,0.00011916,2]
[352481736,1739134267343,-691.26,0.00011916,2]
[352481737,1739134267352,-623.02,0.00011916,2]
[352481738,1739134267361,-2376.59,0.00011916,2]
[352481739,1739134267370,-783.79,0.00011916,2]
[352481740,1739134267379,-500.0,0.00011916,2]
[352481741,1739134267388,-606.97,0.00011916,2]
[352481742,1739134267397,-500.0,0.00011916,2]
[352481743,1739134267406,-500.0,0.00011917,2]
[352481744,1739134267416,-814.02104815,0.00012022,2]
[352481745,1739134267426,-500.0,0.00012052,2]
[352481746,1739134267435,-917.93,0.00012053,2]
[352481747,1739134267444,-692.23,0.00012053,2]
[352481748,1739134267453,-726.47,0.00012053,2]
[352481749,1739134267463,-653.23,0.00012053,2]
[352481750,1739134267472,-194.28,0.00012053,2]
[352481751,1739134267483,-500.0,0.00012053,2]
[352481752,1739134267493,-500.0,0.00012053,2]
[352481753,1739134267502,-500.0,0.00012053,2]
[352481754,1739134267512,-1352.48,0.00012053,2]
[352481755,1739134267522,-529.76,0.00012053,2]
[352481756,1739134267539,-500.0,0.00012053,2]
[352481757,1739134267548,-663.71,0.00012053,2]
[352481758,1739134267558,-673.8,0.00012053,2]
[352481759,1739134267568,-699.27,0.00012053,2]
[352481760,1739134267578,-974.55,0.00012053,2]
[352481761,1739134267588,-500.0,0.00012053,2]
[352481762,1739134267597,-1051.01,0.00012053,2]
[352481763,1739134267607,-500.0,0.00012053,2]
[352481764,1739134267616,-726.4,0.00012053,2]
[352481765,1739134267625,-671.52,0.00012053,2]
[352481766,1739134267635,-500.0,0.00012053,2]
[352481767,1739134267644,-1306.57,0.00012053,2]
[352481768,1739134267654,-591.07,0.00012053,2]
[352481769,1739134267663,-500.0,0.00012053,2]
[352481770,1739134267672,-640.63,0.00012053,2]
[352481771,1739134267681,-500.0,0.00012053,2]
[352481772,1739134267691,-573.12,0.00012053,2]
[352481773,1739134267700,-500.0,0.00012053,2]
[352481774,1739134267709,-253.77,0.00012053,2]
[352481775,1739134267718,-500.0,0.00012053,2]
[352481776,1739134267728,-468.28,0.00012053,2]
[352481777,1739134267738,-691.26,0.00012053,2]
[352481778,1739134267748,-2376.59,0.00012053,2]
[352481779,1739134267757,-783.79,0.00012053,2]
[352481780,1739134267766,-500.0,0.00012053,2]
[352481781,1739134267776,-606.97,0.00012053,2]
[352481782,1739134267785,-500.0,0.00012053,2]
[352481783,1739134267794,-445.67,0.00012054,2]
[352481784,1739134267804,-24642.18463379,0.00012076,2]
[352481785,1739134267813,-1000.0,0.00012164,2]
[352481786,1739134267822,-1000.0,0.00012164,2]
[352481787,1739134267832,-1000.0,0.00012164,2]
[352481788,1739134267842,-1000.0,0.00012164,2]
[352481789,1739134267853,-1000.0,0.00012164,2]
[352481790,1739134267863,-1000.0,0.00012164,2]
[352481791,1739134267874,-1000.0,0.00012164,2]
[352481792,1739134267884,-1000.0,0.00012164,2]
[352481793,1739134267894,-1000.0,0.00012164,2]
[352481794,1739134267903,-1000.0,0.00012164,2]
[352481795,1739134267913,-500.0,0.00012189,2]
[352481796,1739134267924,-917.93,0.0001219,2]
[352481797,1739134267933,-692.23,0.0001219,2]
[352481798,1739134267944,-726.47,0.0001219,2]
[352481799,1739134267954,-653.23,0.0001219,2]
[352481800,1739134268096,-500.0,0.0001219,2]
[352481801,1739134268105,-500.0,0.0001219,2]
[352481802,1739134268115,-500.0,0.0001219,2]
[352481803,1739134268125,-1352.48,0.0001219,2]
[352481804,1739134268135,-529.76,0.0001219,2]
[352481805,1739134268144,-500.0,0.0001219,2]
[352481806,1739134268153,-663.71,0.0001219,2]
[352481807,1739134268163,-673.8,0.0001219,2]
[352481808,1739134268172,-699.27,0.0001219,2]
[352481809,1739134268181,-974.55,0.0001219,2]
[352481810,1739134268191,-500.0,0.0001219,2]
[352481811,1739134268200,-1051.01,0.0001219,2]
[352481812,1739134268210,-624.19,0.0001219,2]
[352481813,1739134268219,-726.4,0.0001219,2]
[352481814,1739134268229,-671.52,0.0001219,2]
[352481815,1739134268239,-500.0,0.0001219,2]
[352481816,1739134268248,-1306.57,0.0001219,2]
[352481817,1739134268257,-591.07,0.0001219,2]
[352481818,1739134268267,-500.0,0.0001219,2]
[352481819,1739134268276,-640.63,0.0001219,2]
[352481820,1739134268285,-500.0,0.0001219,2]
[352481821,1739134268295,-573.12,0.0001219,2]
[352481822,1739134268304,-500.0,0.0001219,2]
[352481823,1739134268312,-463.7026792,0.0001219,2]
[352481824,1739134268322,-691.26,0.0001219,2]
[352481825,1739134268331,-2376.59,0.0001219,2]
[352481826,1739134268341,-783.79,0.0001219,2]
[352481827,1739134268349,-500.0,0.0001219,2]
[352481828,1739134268359,-606.97,0.0001219,2]
[352481829,1739134268368,-500.0,0.0001219,2]
[352481830,1739134268377,-393.48,0.00012298,2]
[352481831,1739134268387,-500.0,0.00012326,2]
[352481832,1739134268396,-917.93,0.00012327,2]
[352481833,1739134268405,-692.23,0.00012327,2]
[352481834,1739134268415,-726.47,0.00012327,2]
[352481835,1739134268425,-653.23,0.00012327,2]
[352481836,1739134268434,-500.0,0.00012327,2]
[352481837,1739134268444,-500.0,0.00012327,2]
[352481838,1739134268453,-1352.48,0.00012327,2]
[352481839,1739134268462,-529.76,0.00012327,2]
[352481840,1739134268471,-414.96,0.00012327,2]
[352481841,1739134268482,-663.71,0.00012327,2]
[352481842,1739134268492,-673.8,0.00012327,2]
[352481843,1739134268501,-699.27,0.00012327,2]
[352481844,1739134268511,-974.55,0.00012327,2]
[352481845,1739134268520,-500.0,0.00012327,2]
[352481846,1739134268530,-1051.01,0.00012327,2]
[352481847,1739134268539,-726.4,0.00012327,2]
[352481848,1739134268548,-671.52,0.00012327,2]
[352481849,1739134268558,-500.0,0.00012327,2]
[352481850,1739134268568,-1306.57,0.00012327,2]
[352481851,1739134268577,-591.07,0.00012327,2]
[352481852,1739134268587,-500.0,0.00012327,2]
[352481853,1739134268596,-640.63,0.00012327,2]
[352481854,1739134268606,-500.0,0.00012327,2]
[352481855,1739134268615,-573.12,0.00012327,2]
[352481856,1739134268625,-500.0,0.00012327,2]
[352481857,1739134268635,-691.26,0.00012327,2]
[352481858,1739134268644,-2376.59,0.00012327,2]
[352481859,1739134268654,-783.79,0.00012327,2]
[352481860,1739134268663,-500.0,0.00012327,2]
[352481861,1739134268673,-606.97,0.00012327,2]
[352481862,1739134268682,-500.0,0.00012327,2]
[352481863,1739134268692,-471.58,0.00012463,2]
[352481864,1739134268701,-917.93,0.00012464,2]
[352481865,1739134268711,-692.23,0.00012464,2]
[352481866,1739134268720,-726.47,0.00012464,2]
[352481867,1739134268730,-653.23,0.00012464,2]
[352481868,1739134268740,-500.0,0.00012464,2]
[352481869,1739134268750,-500.0,0.00012464,2]
[352481870,1739134268760,-1352.48,0.00012464,2]
[352481871,1739134268770,-529.76,0.00012464,2]
[352481872,1739134268779,-663.71,0.00012464,2]
[352481873,1739134268789,-673.8,0.00012464,2]